bitfinex-derivatives/quotes_ETHF0:USTF0_20241013
["timestamp","ask_amount","ask_price","bid_price","bid_amount"]
[1728779766029,1.16,2482.7,2482.6,2.39939529]
[1728779766430,1.16,2482.7,2482.6,1.05203307]
[1728779767531,1.16,2482.7,2482.5,1.05203307]
[1728779767731,1.16,2482.6,2482.5,1.05203307]
[1728779767929,1.16,2482.6,2482.5,2.39934914]
[1728779769424,1.16,2482.6,2482.5,1.05203307]
[1728779769625,1.16,2482.6,2482.5,1.45491307]
[1728779770337,1.16,2482.6,2482.5,2.92154117]
[1728779770538,1.16,2482.6,2482.5,2.39925184]
[1728779771234,0.4195,2482.8,2482.6,0.40285]
[1728779771434,0.4195,2482.8,2482.7,2.38614]
[1728779771640,0.4195,2482.8,2482.7,3.43829463]
[1728779772841,0.4195,2482.8,2482.7,1.05215463]
[1728779772842,1.5795,2482.8,2482.7,1.05215463]
[1728779773543,1.5795,2482.8,2482.6,1.05215463]
[1728779773736,1.16,2482.7,2482.6,1.05215463]
[1728779773935,1.16,2482.7,2482.6,2.3987695]
[1728779774348,1.16,2482.7,2482.6,2.39877282]
[1728779775649,1.16,2482.7,2482.6,2.39870415]
[1728779776158,1.5795,2482.8,2482.6,2.39870415]
[1728779776357,1.5795,2482.8,2482.6,1.05215463]
[1728779779161,1.98233,2482.8,2482.6,1.05215463]
[1728779779757,1.16,2482.7,2482.6,1.05215463]
[1728779780150,1.16,2482.7,2482.5,1.05215463]
[1728779780460,0.40286,2482.6,2482.5,1.05215463]
[1728779780760,3.6273,2482.8,2482.5,2.21215463]
[1728779780761,0.4195,2482.8,2482.5,2.21215463]
[1728779781152,1.98234,2482.8,2482.5,1.05215463]
[1728779782467,1.16,2482.7,2482.4,2.61205463]
[1728779782662,1.56285,2482.7,2482.4,1.45205463]
[1728779783061,1.56285,2482.7,2482.4,1.05215463]
[1728779783461,1.16,2482.5,2482.4,1.05215463]
[1728779784566,1.56288,2482.5,2482.4,1.05215463]
[1728779784861,1.56288,2482.5,2482.3,1.05215463]
[1728779785061,2.3761,2482.4,2482.3,1.05215463]
[1728779785265,2.3761,2482.4,2482.2,1.05215463]
[1728779785865,2.3761,2482.4,2482.2,2.21215463]
[1728779786167,2.779,2482.4,2482.1,2.62672197]
[1728779786368,2.779,2482.4,2482.1,1.05215463]
[1728779786369,1.16,2482.3,2482.1,1.05215463]
[1728779786663,1.16,2482.3,2482.1,2.21215463]
[1728779787364,1.56291,2482.3,2482.0,2.21215463]
[1728779787764,1.16,2482.3,2482.0,2.21215463]
[1728779788064,1.16,2482.3,2482.0,2.61511463]
[1728779788455,1.16,2482.3,2482.0,2.21215463]
[1728779788456,1.16,2482.2,2482.0,2.21215463]
[1728779788662,1.16,2482.2,2482.0,1.16]
[1728779788870,1.5526,2482.1,2481.9,2.60065463]
[1728779789165,1.5526,2482.1,2481.9,3.00362463]
[1728779789667,1.5526,2482.1,2482.0,1.16]
[1728779789870,0.3926,2482.1,2482.0,1.56296]
[1728779790274,1.16,2482.3,2482.0,2.21215463]
[1728779790562,0.3926,2482.3,2482.2,1.56292]
[1728779791156,0.3926,2482.3,2482.2,1.98242]
[1728779791761,0.80195,2482.7,2482.2,1.98242]
[1728779791762,0.3991,2482.7,2482.5,0.40287]
[1728779792068,0.3991,2482.7,2482.4,1.56288]
[1728779792069,1.16,2482.6,2482.4,1.56288]
[1728779792266,1.5542,2482.6,2482.4,1.56288]
[1728779792568,1.5542,2482.6,2482.4,1.16]
[1728779792760,1.5542,2482.6,2482.5,0.40288]
[1728779793168,7.3868,2482.8,2482.5,1.16]
[1728779793387,4.3678,2482.8,2482.7,0.40284]
[1728779793566,4.3678,2482.8,2482.6,1.16]
[1728779793567,1.16,2482.7,2482.6,0.40284]
[1728779795665,3.2078,2482.8,2482.5,1.5703]
[1728779795870,3.2078,2482.8,2482.7,1.56284]
[1728779796070,3.2078,2482.8,2482.7,2.61499463]
[1728779796269,3.2078,2482.8,2482.7,3.03319463]
[1728779796471,3.2078,2482.8,2482.7,4.37777586]
[1728779796871,3.2078,2483.1,2483.0,0.40279]
[1728779797073,3.2078,2483.1,2483.0,1.56279]
[1728779797277,4.3678,2483.1,2483.0,1.56279]
[1728779797871,4.3678,2483.1,2483.0,0.79209]
[1728779799174,1.16,2483.1,2483.0,0.79209]
[1728779800079,1.16,2483.1,2482.8,0.40281]
[1728779800383,1.5511,2483.0,2482.8,0.40281]
[1728779800578,1.9551,2483.0,2482.8,0.40281]
[1728779800787,0.3885,2482.9,2482.8,0.40281]
[1728779801278,1.5485,2482.9,2482.7,1.98103]
[1728779802075,1.5485,2482.9,2482.7,1.5782]
[1728779802679,1.5485,2482.9,2482.7,1.98104]
[1728779803778,1.16,2482.8,2482.7,1.05215463]
[1728779803981,1.16,2482.8,2482.5,1.89825463]
[1728779804178,1.16,2482.7,2482.5,1.89825463]
[1728779804575,1.16,2482.8,2482.5,3.46112463]
[1728779805782,1.16,2482.8,2482.5,3.05825463]
[1728779805982,1.16,2482.8,2482.6,1.16]
[1728779807089,4.7563,2482.9,2482.6,1.56286]
[1728779807388,4.7563,2482.9,2482.7,1.56284]
[1728779807389,0.3885,2482.9,2482.7,1.56284]
[1728779808481,0.3885,2482.9,2482.8,0.40283]
[1728779815194,0.3885,2482.9,2482.7,1.56283]
[1728779815399,1.16,2482.8,2482.7,0.40283]
[1728779821011,0.3885,2482.9,2482.7,1.56283]
[1728779824101,0.3885,2482.9,2482.8,0.40283]
[1728779824305,0.3885,2482.9,2482.7,1.16]
[1728779824507,0.3885,2482.9,2482.7,1.56283]
[1728779828210,0.3885,2482.9,2482.8,0.40283]
[1728779828503,0.3885,2482.9,2482.7,1.5427]
[1728779828708,0.79132,2482.9,2482.7,1.16]
[1728779829008,0.79132,2482.9,2482.7,1.56284]
[1728779829508,0.79132,2482.9,2482.6,2.61500463]
[1728779829811,0.3885,2482.9,2482.6,2.21215463]
[1728779830113,0.40283,2482.8,2482.6,2.61501463]
[1728779830406,0.40283,2482.8,2482.6,1.56286]
[1728779830724,0.40283,2482.8,2482.6,1.16]
[1728779831800,0.40286,2482.6,2482.5,1.05215463]
[1728779832017,0.40286,2482.6,2482.4,5.41995463]
[1728779832200,1.1665,2482.5,2482.4,5.41995463]
[1728779832702,1.1665,2482.5,2482.4,4.25995463]
[1728779832907,1.1665,2482.5,2482.4,3.2078]
[1728779833209,1.56938,2482.5,2482.4,3.2078]
[1728779834511,1.56938,2482.5,2482.3,2.21215463]
[1728779836205,1.56938,2482.5,2482.4,1.16]
[1728779836704,1.1665,2482.5,2482.3,1.05215463]
[1728779836908,2.3265,2482.5,2482.2,1.44245463]
[1728779837108,2.72938,2482.5,2482.2,2.60245463]
[1728779837413,2.72938,2482.5,2482.2,2.21215463]
[1728779837824,4.8415816,2482.5,2482.2,1.16]
[1728779838017,4.8415916,2482.5,2482.2,1.16]
[1728779838315,1.56938,2482.5,2482.4,1.16]
[1728779838715,5.59738,2482.5,2482.4,1.16]
[1728779839409,5.59738,2482.5,2482.3,1.16]
[1728779839715,1.56938,2482.5,2482.3,1.16]
[1728779839916,0.78,2482.5,2482.4,1.16]
[1728779840108,0.3937,2482.5,2482.4,1.56289]
[1728779840504,0.3937,2482.5,2482.4,2.39059]
[1728779845022,0.3937,2482.5,2482.4,1.16]
[1728779849322,0.3937,2482.5,2482.4,1.56289]
[1728779851614,0.3937,2482.5,2482.4,1.97899]
[1728779854131,0.3937,2482.5,2482.4,1.16]
[1728779854326,0.3937,2482.5,2482.3,0.785]
[1728779854327,1.5537,2482.5,2482.3,0.785]
[1728779855120,0.3937,2482.5,2482.3,1.5421]
[1728779855724,0.3937,2482.5,2482.4,0.40289]
[1728779855953,0.3937,2482.5,2482.4,1.56289]
[1728779856139,0.3937,2482.5,2482.4,1.95339]
[1728779859627,0.82634,2482.7,2482.4,3.00554463]
[1728779859827,1.21544,2482.7,2482.5,0.4204]
[1728779860132,0.8126,2482.7,2482.5,0.4204]
[1728779860329,1.21544,2482.7,2482.5,0.4204]
[1728779861933,0.40286,2482.6,2482.5,0.4204]
[1728779862124,1.21546,2482.7,2482.5,0.4204]
[1728779862324,1.21546,2482.7,2482.5,0.82327]
[1728779863029,1.21546,2482.7,2482.5,0.4204]
[1728779867239,1.21545,2482.7,2482.5,0.4204]
[1728779868032,0.40286,2482.6,2482.5,0.4204]
[1728779868337,1.21545,2482.7,2482.5,0.4204]
[1728779868933,0.40286,2482.6,2482.5,0.4204]
[1728779871034,3.3276516,2482.7,2482.5,0.4204]
[1728779871437,2.9248016,2482.7,2482.5,0.4204]
[1728779871635,0.40286,2482.6,2482.5,0.4204]
[1728779872246,2.9248016,2482.7,2482.5,0.4204]
[1728779872441,0.40286,2482.6,2482.5,0.4204]
[1728779872641,2.9248016,2482.7,2482.5,0.4204]
[1728779872842,3.3276516,2482.7,2482.5,0.4204]
[1728779873046,3.3276516,2482.7,2482.5,1.47255463]
[1728779873645,0.40286,2482.6,2482.5,1.47255463]
[1728779874742,2.9248016,2482.7,2482.5,1.47255463]
[1728779875048,3.3276516,2482.7,2482.5,1.47255463]
[1728779875744,2.9248016,2482.7,2482.5,1.47255463]
[1728779875950,0.40286,2482.6,2482.5,1.47255463]
[1728779876345,0.40286,2482.6,2482.5,2.81966435]
[1728779877350,0.40286,2482.6,2482.5,1.76750972]
[1728779877659,2.9248016,2482.7,2482.5,2.82217428]
[1728779877852,0.40286,2482.6,2482.5,1.47506456]
[1728779878045,3.3276516,2482.7,2482.5,3.34224973]
[1728779878357,3.3276516,2482.7,2482.6,1.0546286]
[1728779879758,2.5013016,2482.7,2482.6,2.2146286]
[1728779880848,2.5013016,2482.7,2482.6,3.56175217]
[1728779881646,2.5013016,2482.7,2482.6,2.2146286]
[1728779883452,2.5013016,2482.7,2482.6,3.56167344]
[1728779883658,2.5013016,2482.7,2482.6,2.2146286]
[1728779884052,2.5013016,2482.7,2482.6,3.56168947]
[1728779884257,0.3891,2482.7,2482.6,3.56168947]
[1728779884458,2.5013016,2482.7,2482.6,3.56168947]
[1728779884960,2.9041416,2482.7,2482.6,3.56168947]
[1728779886061,2.5013016,2482.7,2482.6,3.56168947]
[1728779886254,2.5013016,2482.7,2482.6,3.5617746]
[1728779886662,2.5013016,2482.7,2482.6,2.2146286]
[1728779887250,2.9041416,2482.7,2482.6,2.2146286]
[1728779893562,2.5013016,2482.7,2482.6,2.2146286]
[1728779894165,2.9041416,2482.7,2482.6,3.56177357]
[1728779895871,2.9041416,2482.7,2482.6,3.56184833]
[1728779896071,2.5013016,2482.7,2482.6,3.56184833]
[1728779896275,2.1122016,2482.7,2482.6,6.93807973]
[1728779896470,2.1122016,2482.8,2482.7,0.40284]
[1728779896680,2.1122016,2482.9,2482.8,0.40283]
[1728779896869,5.7048016,2483.0,2482.9,0.40281]
[1728779897066,5.7048016,2483.0,2482.9,2.61703513]
[1728779897473,3.5926,2483.0,2482.9,4.48378416]
[1728779898473,3.5926,2483.0,2482.9,3.962854]
[1728779899268,3.5926,2483.0,2482.9,2.61644718]
[1728779903377,3.5926,2483.0,2482.9,1.56281]
[1728779906499,3.5926,2483.0,2482.9,1.16]
[1728779906905,4.0149,2483.0,2482.9,1.16]
[1728779907504,4.0149,2483.0,2482.7,1.46013718]
[1728779907705,0.40281,2482.9,2482.7,2.21363718]
[1728779908001,0.4116,2482.8,2482.7,2.21363718]
[1728779908396,0.4116,2482.8,2482.7,1.16]
[1728779908804,1.5716,2482.8,2482.6,1.05363718]
[1728779909010,0.4035,2482.7,2482.5,1.05363718]
[1728779909314,0.4035,2482.7,2482.6,2.21363718]
[1728779909508,0.4035,2482.7,2482.6,2.61649718]
[1728779909811,0.4035,2482.7,2482.6,2.21363718]
[1728779910118,0.4035,2482.7,2482.6,3.55859049]
[1728779910409,0.4035,2482.7,2482.6,2.21363718]
[1728779912408,0.4035,2482.7,2482.6,3.55850308]
[1728779912607,0.4035,2482.7,2482.6,2.21363718]
[1728779913315,0.4035,2482.7,2482.6,3.55849338]
[1728779913518,0.4035,2482.7,2482.6,2.21363718]
[1728779914727,0.4035,2482.7,2482.6,1.16]
[1728779915508,0.4035,2482.7,2482.6,2.21363718]
[1728779916009,0.4035,2482.7,2482.6,1.16]
[1728779916414,0.4035,2482.7,2482.6,2.21363718]
[1728779917912,0.4035,2482.7,2482.6,2.61649718]
[1728779919021,0.4035,2482.7,2482.6,3.96158999]
[1728779919222,0.4035,2482.7,2482.6,2.61649718]
[1728779919404,0.4035,2482.7,2482.6,3.96159919]
[1728779919709,0.4035,2482.7,2482.6,3.96152275]
[1728779920010,0.4035,2482.7,2482.6,2.61649718]
[1728779921303,0.4035,2482.7,2482.6,3.96155106]
[1728779921992,0.4035,2482.7,2482.6,2.61649718]
[1728779922388,0.4035,2482.7,2482.6,3.96167432]
[1728779922594,0.4035,2482.7,2482.6,2.61649718]
[1728779923594,0.4035,2482.7,2482.6,3.96173205]
[1728779924687,0.4035,2482.7,2482.6,2.61649718]
[1728779924888,0.4035,2482.7,2482.6,3.96178378]
[1728779926191,0.4035,2482.7,2482.6,2.9081466]
[1728779926393,0.4035,2482.7,2482.6,4.48271394]
[1728779929301,0.4035,2482.7,2482.6,4.48275417]
[1728779929808,0.4035,2482.7,2482.6,5.33214642]
[1728779930197,4.0362,2483.0,2482.8,0.40281]
[1728779930399,4.0362,2483.0,2482.9,1.16]
[1728779930400,4.46,2483.0,2482.9,1.16]
[1728779930801,4.46,2483.0,2482.9,1.56281]
[1728779931211,4.46,2483.0,2482.9,1.16]
[1728779931602,1.2522,2483.0,2482.9,1.16]
[1728779933710,1.2522,2483.0,2482.9,1.56281]
[1728779934604,1.2522,2483.0,2482.8,2.61580258]
[1728779934805,1.2522,2483.0,2482.8,2.21298258]
[1728779935007,3.3644016,2483.0,2482.8,1.56283]
[1728779936308,3.3644016,2483.0,2482.8,2.61581258]
[1728779938312,3.3644016,2483.0,2482.9,1.56281]
[1728779938817,1.2522,2483.0,2482.9,1.56281]
[1728779939610,1.2522,2483.0,2482.9,2.61579258]
[1728779943803,1.2522,2483.0,2482.9,2.21298258]
[1728779944005,1.2522,2483.0,2482.9,1.16]
[1728779944311,4.9271916,2483.0,2482.8,1.05298258]
[1728779945029,2.5150116,2482.9,2482.7,1.05298258]
[1728779945315,2.1122016,2482.9,2482.8,1.16]
[1728779947112,2.5150116,2482.9,2482.8,1.16]
[1728779951915,2.5150116,2482.9,2482.8,2.21298258]
[1728779954211,2.1122016,2482.9,2482.8,2.21298258]
[1728779955919,3.3644016,2483.0,2482.8,3.01771258]
[1728779956112,3.3644016,2483.0,2482.9,1.16]
[1728779956516,2.5360016,2483.0,2482.9,1.56281]
[1728779956721,5.3200016,2483.1,2482.9,3.55827285]
[1728779956912,5.3200016,2483.1,2483.0,2.61577258]
[1728779957221,5.3200016,2483.1,2483.0,3.01987258]
[1728779957420,3.2078,2483.1,2483.0,3.01987258]
[1728779960916,3.2078,2483.1,2483.0,4.36468081]
[1728779962123,2.1122016,2483.3,2483.2,0.40276]
[1728779962427,3.45394205,2483.5,2483.2,1.16]
[1728779962428,2.1122016,2483.4,2483.2,1.16]
[1728779962622,2.1122016,2483.4,2483.3,1.96255]
[1728779963418,2.5156016,2483.5,2483.4,0.40273]
[1728779963619,2.5156016,2483.5,2483.4,1.56273]
[1728779965027,0.4034,2483.5,2483.4,1.56273]
[1728779966020,2.1122016,2483.6,2483.4,1.16]
[1728779966217,5.7078016,2483.7,2483.5,1.16]
[1728779966419,5.7078016,2483.7,2483.6,1.5627]
[1728779966420,3.5956,2483.7,2483.6,1.5627]
[1728779968814,0.3878,2483.7,2483.6,1.5627]
[1728779973722,0.3878,2483.7,2483.6,1.16]
[1728779974027,2.5000016,2483.7,2483.6,1.16]
[1728779974426,0.3878,2483.7,2483.6,1.16]
[1728779974731,0.79048,2483.7,2483.6,1.16]
[1728779975132,3.42772205,2483.7,2483.6,1.16]
[1728779975333,0.4027,2483.6,2483.1,0.8428]
[1728779975532,0.4027,2483.6,2483.3,1.16]
[1728779975533,2.51020231,2483.4,2483.3,1.16]
[1728779976031,3.27580231,2483.4,2483.3,1.16]
[1728779976425,0.40276,2483.3,2483.2,1.16]
[1728779976632,2.51022231,2483.3,2483.2,1.16]
[1728779978233,0.40276,2483.3,2483.2,1.16]
[1728779978734,3.40284205,2483.4,2483.2,1.16]
[1728779978941,3.80558205,2483.4,2483.3,1.16]
[1728779979333,7.83278205,2483.4,2483.3,1.16]
[1728779982026,5.19554,2483.4,2483.3,1.16]
[1728779982229,5.19554,2483.4,2483.0,0.40279]
[1728779982230,4.7928,2483.4,2483.0,0.40279]
[1728779982536,0.40275,2483.3,2483.0,0.40279]
[1728779984538,0.40275,2483.3,2483.2,1.16]
[1728779985564,4.37614,2483.4,2483.2,1.16]
[1728779985740,4.37614,2483.4,2483.3,1.16]
[1728779986243,8.40334,2483.4,2483.3,1.16]
[1728779986443,4.37614,2483.4,2483.3,1.16]
[1728779988933,6.48397742,2483.4,2483.3,1.16]
[1728779990845,7.24123742,2483.4,2483.2,1.16]
[1728779991055,0.40279,2483.1,2483.0,1.16]
[1728779991338,0.4028,2483.0,2482.9,1.16]
[1728779991550,1.6112,2483.0,2482.9,1.16]
[1728779998045,1.2084,2483.0,2482.9,1.16]
[1728780000341,0.8031,2483.0,2482.9,1.16]
[1728780000548,3.2078,2483.2,2482.9,1.16]
[1728780000847,3.2078,2483.2,2483.1,1.16]
[1728780001048,3.2078,2483.2,2483.1,1.56278]
[1728780001247,3.2078,2483.2,2483.1,1.94958]
[1728780002144,4.0254,2483.3,2483.1,1.94958]
[1728780002770,3.6113,2483.3,2483.2,1.56276]
[1728780003251,3.2078,2483.3,2483.2,1.56276]
[1728780009054,0.4151,2483.5,2483.2,1.56276]
[1728780009348,0.4151,2483.5,2483.4,1.16]
[1728780009349,5.18561,2483.5,2483.4,1.16]
[1728780009547,4.7829,2483.5,2483.4,1.16]
[1728780009757,8.8093,2483.5,2483.4,1.16]
[1728780011756,3.6229,2483.5,2483.4,1.56273]
[1728780012351,2.10783742,2483.7,2483.6,0.4027]
[1728780012551,10.42670205,2483.9,2483.6,1.5627]
[1728780012552,0.4079,2483.8,2483.6,1.5627]
[1728780012850,0.4079,2483.8,2483.7,1.56268]
[1728780013048,5.31563742,2483.9,2483.7,1.16]
[1728780013244,5.31563742,2483.9,2483.8,1.56266]
[1728780013245,3.2078,2483.9,2483.8,1.56266]
[1728780013756,3.2078,2483.9,2483.8,1.16]
[1728780014463,4.77045,2483.9,2483.8,1.16]
[1728780016781,1.56265,2483.9,2483.8,1.16]
[1728780017955,3.67048742,2483.9,2483.8,1.16]
[1728780018154,1.56265,2483.9,2483.8,1.16]
[1728780018457,3.67048742,2483.9,2483.8,1.16]
[1728780018656,1.56265,2483.9,2483.8,1.16]
[1728780018860,3.67048742,2483.9,2483.8,1.16]
[1728780019357,1.56265,2483.9,2483.8,1.16]
[1728780025161,0.40265,2483.9,2483.8,1.16]
[1728780025459,1.56265,2483.9,2483.8,1.16]
[1728780026256,0.40265,2483.9,2483.8,1.16]
[1728780030962,1.16,2483.9,2483.5,0.82]
[1728780031164,0.4027,2483.6,2483.5,1.16]
[1728780031552,1.599,2483.6,2483.5,1.16]
[1728780032470,2.759,2483.6,2483.5,1.16]
[1728780032861,5.9668,2483.6,2483.5,1.16]
[1728780033060,5.9668,2483.6,2483.2,0.40275]
[1728780033061,0.40272,2483.5,2483.4,1.16]
[1728780035081,4.4041,2483.6,2483.4,1.16]
[1728780035370,4.8068,2483.6,2483.5,1.16]
[1728780043474,7.44255142,2483.6,2483.5,1.16]
[1728780045263,7.03985142,2483.6,2483.5,1.16]
[1728780045463,7.03985142,2483.6,2483.5,1.5838]
[1728780045662,2.63575142,2483.7,2483.5,2.36901]
[1728780045874,2.63575142,2483.7,2483.6,1.16]
[1728780046190,2.63575142,2483.7,2483.6,1.5627]
[1728780048271,2.63575142,2483.7,2483.6,1.16]
[1728780049277,2.11210057,2483.7,2483.6,1.16]
[1728780051776,2.51478057,2483.7,2483.6,1.16]
[1728780052075,2.11210057,2483.7,2483.6,1.16]
[1728780052777,5.1864,2483.7,2483.4,1.052384]
[1728780052979,3.71215792,2483.6,2483.4,1.16]
[1728780053300,0.40271,2483.5,2483.4,1.16]
[1728780053472,2.51515792,2483.5,2483.4,1.16]
[1728780055780,2.11244792,2483.5,2483.4,1.16]
[1728780058385,3.71215792,2483.6,2483.4,1.16]
[1728780058683,2.11244792,2483.5,2483.3,1.455124]
[1728780059484,2.92865792,2483.6,2483.3,1.455124]
[1728780059883,2.52594792,2483.6,2483.4,0.40273]
[1728780060405,2.92864792,2483.6,2483.5,1.16]
[1728780062078,2.92864792,2483.6,2483.3,1.455124]
[1728780062279,1.56271,2483.5,2483.3,2.212384]
[1728780062481,2.11244792,2483.5,2483.3,2.212384]
[1728780062688,0.82452,2483.5,2483.4,1.16]
[1728780062892,2.93696792,2483.5,2483.4,1.16]
[1728780064586,3.46027142,2483.5,2483.4,1.16]
[1728780064785,0.82452,2483.5,2483.4,1.16]
[1728780064994,3.46027142,2483.5,2483.4,1.16]
[1728780068586,3.05755142,2483.5,2483.4,1.16]
[1728780069389,3.05755142,2483.5,2483.4,1.56273]
[1728780069588,2.63575142,2483.5,2483.4,1.56273]
[1728780069788,2.63575142,2483.6,2483.4,1.56273]
[1728780069991,2.63575142,2483.6,2483.5,1.5793]
[1728780070217,2.63575142,2483.6,2483.5,1.9822]
[1728780070386,2.63575142,2483.6,2483.5,2.38491]
[1728780071093,2.63575142,2483.7,2483.6,0.4027]
[1728780071394,3.04515142,2483.8,2483.6,1.9748]
[1728780071593,3.04515142,2483.8,2483.7,1.16]
[1728780076303,3.04515142,2483.8,2483.7,1.56268]
[1728780076895,0.4094,2483.8,2483.7,1.56268]
[1728780079695,3.57409046,2483.8,2483.7,1.56268]
[1728780080397,0.4094,2483.8,2483.7,1.56268]
[1728780081602,0.4094,2483.8,2483.7,1.16]
[1728780083791,6.37249046,2484.0,2483.8,0.40266]
[1728780083994,6.37249046,2484.0,2483.9,1.9599]
[1728780084199,6.37249046,2484.0,2483.9,5.9855]
[1728780084606,3.2078,2484.0,2483.9,5.9855]
[1728780085105,3.2078,2484.0,2483.9,1.9599]
[1728780086497,3.2078,2484.0,2483.9,5.9855]
[1728780087703,3.2078,2484.0,2483.9,1.9599]
[1728780087704,0.40263,2484.0,2483.9,1.9599]
[1728780087905,2.51415216,2484.0,2483.9,1.5584]
[1728780088106,3.32545216,2484.0,2483.9,5.584]
[1728780088499,3.32545216,2484.0,2483.9,1.5584]
[1728780088708,3.32545216,2484.0,2483.9,5.584]
[1728780089002,1.21393,2484.0,2483.9,5.584]
[1728780089304,2.92282216,2484.0,2483.9,5.584]
[1728780089497,0.8113,2484.0,2483.9,5.584]
[1728780089891,1.21393,2484.0,2483.9,1.5584]
[1728780090108,1.21393,2484.0,2483.9,5.584]
[1728780090307,3.32545216,2484.0,2483.9,5.584]
[1728780090800,1.21393,2484.0,2483.9,5.584]
[1728780091000,3.32545216,2484.0,2483.9,1.5584]
[1728780091198,1.21393,2484.0,2483.9,1.5584]
[1728780091795,3.32545216,2484.0,2483.9,1.5584]
[1728780092004,1.21393,2484.0,2483.9,1.5584]
[1728780092200,3.32545216,2484.0,2483.9,1.5584]
[1728780092404,1.21393,2484.0,2483.9,1.5584]
[1728780092599,3.32545216,2484.0,2483.9,1.5584]
[1728780093103,1.21393,2484.0,2483.9,1.5584]
[1728780093304,3.32545216,2484.0,2483.9,1.5584]
[1728780093703,3.32545216,2484.0,2483.9,1.16]
[1728780094195,4.48545216,2484.0,2483.9,1.16]
[1728780094406,2.37393,2484.0,2483.9,1.16]
[1728780094910,6.06606887,2484.0,2483.9,1.16]
[1728780099505,4.90606887,2484.0,2483.9,1.16]
[1728780101712,1.21393,2484.0,2483.9,1.16]
[1728780103209,3.32495627,2484.0,2483.9,1.16]
[1728780107518,1.21393,2484.0,2483.9,1.16]
[1728780107709,3.32520378,2484.0,2483.9,1.16]
[1728780107909,1.21393,2484.0,2483.9,1.16]
[1728780108812,4.380402,2484.0,2483.9,1.16]
[1728780110913,0.8113,2484.0,2483.9,1.16]
[1728780111322,3.962502,2484.0,2483.9,1.16]
[1728780113923,3.166472,2484.0,2483.9,1.16]
[1728780115825,6.374272,2484.1,2483.9,1.9678]
[1728780116016,6.374272,2484.1,2484.0,1.16]
[1728780116723,3.61042,2484.1,2484.0,1.16]
[1728780117618,3.2078,2484.1,2484.0,1.16]
[1728780118122,5.84849513,2484.1,2483.9,0.8078]
[1728780118319,2.11262533,2484.0,2483.9,0.8078]
[1728780118520,2.50262533,2484.0,2483.9,1.9678]
[1728780123939,0.39,2484.0,2483.9,1.5518]
[1728780124138,3.03069513,2484.0,2483.9,1.5518]
[1728780124930,3.43332513,2484.0,2483.9,1.5518]
[1728780126232,3.82522513,2484.0,2483.9,1.5518]
[1728780129539,3.42259513,2484.0,2483.9,1.5518]
[1728780130337,1.18453,2484.0,2483.9,1.5518]
[1728780130731,1.18453,2484.0,2483.9,1.16]
[1728780130936,3.82522513,2484.0,2483.9,1.16]
[1728780131938,4.351002,2484.0,2483.9,1.16]
[1728780134137,3.948372,2484.0,2483.9,1.16]
[1728780134540,3.166472,2484.0,2483.9,1.16]
[1728780134735,3.166472,2484.0,2483.9,1.567]
[1728780138243,3.166472,2484.0,2483.9,1.96965]
[1728780138541,3.166472,2484.0,2483.9,1.567]
[1728780138948,3.61042,2484.1,2483.9,1.567]
[1728780138949,6.25216168,2484.1,2483.9,1.567]
[1728780139647,3.04436168,2484.1,2483.9,1.567]
[1728780140240,3.04436168,2484.1,2483.9,1.16]
[1728780143447,2.64174168,2484.0,2483.9,1.16]
[1728780143948,2.64174168,2484.1,2483.9,1.56265]
[1728780144154,2.64174168,2484.1,2484.0,1.16]
[1728780144445,3.04465427,2484.1,2484.0,1.16]
[1728780144748,0.40262,2484.1,2484.0,1.16]
[1728780150068,0.40265,2484.0,2483.9,1.16]
[1728780150862,3.04530155,2484.0,2483.9,1.16]
[1728780151061,0.40265,2484.0,2483.9,1.16]
[1728780154173,4.61889789,2484.0,2483.9,1.16]
[1728780157073,5.03379789,2484.0,2483.9,1.16]
[1728780159274,5.43129789,2484.0,2483.9,1.16]
[1728780162171,1.21505,2484.0,2483.9,1.16]
[1728780162861,0.8124,2484.0,2483.9,1.16]
[1728780163073,3.61042,2484.1,2483.9,1.16]
[1728780163074,3.2078,2484.1,2484.0,0.40263]
[1728780163267,5.85021871,2484.1,2484.0,0.79643]
[1728780163471,3.2078,2484.1,2484.0,0.79643]
[1728780163669,3.2078,2484.1,2484.0,1.95643]
[1728780164066,5.32164243,2484.1,2484.0,3.008814]
[1728780164273,3.2078,2484.1,2484.0,3.008814]
[1728780164474,5.32163232,2484.1,2484.0,3.008814]
[1728780166275,2.11383232,2484.1,2484.0,3.008814]
[1728780166575,2.64241871,2484.3,2484.1,0.40262]
[1728780166576,2.11383232,2484.2,2484.1,0.40262]
[1728780166761,2.11383232,2484.2,2484.1,1.95372]
[1728780168771,2.11383232,2484.2,2484.1,1.5511]
[1728780168965,3.17108207,2484.2,2484.1,1.95372]
[1728780169569,3.17108207,2484.3,2484.1,1.95372]
[1728780169770,3.17108207,2484.3,2484.2,1.16]
[1728780172878,3.17108207,2484.3,2484.2,1.5626]
[1728780173176,3.17108207,2484.3,2484.2,1.16]
[1728780174285,3.17108207,2484.3,2484.2,5.5882]
[1728780174584,3.17108207,2484.4,2484.2,5.5882]
[1728780174880,6.37888207,2484.5,2484.3,1.16]
[1728780175075,6.37888207,2484.5,2484.4,1.9916]
[1728780175479,6.78143207,2484.5,2484.4,1.9916]
[1728780177074,5.72109298,2484.5,2484.4,1.9916]
[1728780178175,2.51329298,2484.5,2484.4,1.9916]
[1728780181586,0.40255,2484.5,2484.4,1.5701]
[1728780182488,0.40255,2484.5,2484.4,1.16]
[1728780182787,0.40259,2484.3,2484.2,1.16]
[1728780182982,3.61039,2484.3,2484.2,1.16]
[1728780183380,5.72047549,2484.3,2484.2,1.16]